[Event "Marienbad Open IM B 2025"]
[Site "Marianske Lazne"]
[Date "2025.01.20"]
[Round "3.14"]
[White "Pisk, Petr"]
[Black "Roesemann, Rainer"]
[Result "1-0"]
[Annotator "TA"]
[ECO "B10"]
[WhiteElo "2302"]
[BlackElo "2276"]
[PlyCount "108"]
[EventDate "2025.01.18"]
[EventType "tourn"]
[EventCountry "CZE"]
[SourceTitle "playchess.com"]
[Source "ChessBase"]
[SourceQuality "1"]
[TimeControl "40/5400+30:1800+30"]

{[%evp 9,108,-4,0,-12,17,17,19,31,41,37,46,35,37,31,33,32,34,30,29,5,38,29,23,15,12,16,14,12,15,16,14,0,0,0,0,0,0,0,12,0,0,0,0,0,12,0,0,0,0,0,0,0,0,8,8,8,8,8,8,0,8,8,8,8,8,8,8,12,11,0,0,0,0,0,3,3,4,0,7,0,11,11,37,43,42,47,44,19,44,44,214,213,277,252,937,916,29979,29980,29980,29981,4952]} 1. e4 {[%emt 0:00:04]} c6 {[%emt 0:00:10]} 2. Nf3 {[%emt 0:00:20]} d5 {[%emt 0:00:09]} 3. d3 {[%emt 0:00:07]} dxe4 {[%emt 0:01:06]} 4. dxe4 {[%emt 0:00:09]} Qxd1+ {[%emt 0:00:49]} 5. Kxd1 {[%emt 0:00:10]} Nf6 {[%emt 0:00:56]} 6. Nbd2 {[%emt 0:00:28]} Bg4 {[%emt 0:01:55]} 7. Be2 {[%emt 0:01:10]} Nbd7 {[%emt 0:01:45]} 8. Ne1 {[%emt 0:04:19]} e5 {[%emt 0:09:06]} 9. Bxg4 {[%emt 0:04:24]} Nxg4 {[%emt 0:00:14]} 10. Ke2 {[%emt 0:00:13]} Nc5 {[%emt 0:05:40]} 11. f3 {[%emt 0:01:29]} Nf6 {[%emt 0:00:10]} 12. Nc4 {[%emt 0:02:01]} Nfd7 {[%emt 0:00:30]} 13. Be3 {[%emt 0:01:03]} f6 {[%emt 0:01:59]} 14. Rd1 {[%emt 0:03:03]} b6 {[%emt 0:15:07]} 15. Nd3 {[%emt 0:08:46]} O-O-O {[%emt 0:06:55]} 16. Nxc5 {[%emt 0:14:59]} Bxc5 {[%emt 0:02:17]} 17. Nd6+ {[%emt 0:02:18]} Bxd6 $1 {[%emt 0:00:20]} 18. Rxd6 {[%emt 0:00:04]} Nb8 {[%emt 0:02:25]} 19. Rxd8+ {[%emt 0:06:18]} Rxd8 $11 {[%emt 0:00:34][%mdl 4096] Endgame KRB-KRN} 20. g3 {[%emt 0:00:51]} c5 {[%emt 0:04:46]} 21. f4 {[%emt 0:02:49]} Nc6 {[%emt 0:02:10]} 22. c3 {[%emt 0:00:09]} Kd7 {[%emt 0:02:25]} 23. f5 {[%emt 0:03:50]} Na5 {[%emt 0:02:02]} 24. g4 {[%emt 0:11:45]} Nc4 {[%emt 0:01:36]} 25. Bc1 {[%emt 0:04:01]} Nd6 {[%emt 0:00:46]} 26. Kf3 {[%emt 0:03:28]} Nf7 {[%emt 0:01:22]} 27. h4 {[%emt 0:06:31]} Ke7 {[%emt 0:00:27]} 28. Be3 {[%emt 0:08:58]} Rd3 {[%emt 0:00:33]} 29. c4 {[%emt 0:00:40]} h6 {[%emt 0:02:25]} 30. Rb1 {[%emt 0:03:43]} Rd7 {[%emt 0:00:55]} 31. b4 {[%emt 0:04:51]} cxb4 {[%emt 0:00:26]} 32. c5 {[%emt 0:00:38]} Rd3 {[%emt 0:09:10]} 33. cxb6 {[%emt 0:00:08]} (33. Rxb4 bxc5 34. Rb7+ Ke8 $14) 33... axb6 {[%emt 0:00:19]} 34. Rb3 {[%emt 0:02:21]} Rc3 {[%emt 0:06:55]} 35. Rxb4 {[%emt 0:00:34]} Nd6 {[%emt 0:00:07]} 36. Rb3 {[%emt 0:00:09]} (36. Rxb6 $2 {too greedy.} Rxe3+ (36... Rc4 37. Bd2 $11) 37. Kxe3 Nc4+ 38. Kd3 Nxb6 $19) 36... Rc4 {[%emt 0:03:00]} 37. Rxb6 {[%emt 0:00:10]} Nxe4 {[%emt 0:01:51]} 38. Rb7+ {[%emt 0:00:17]} Kf8 {[%emt 0:00:20]} 39. Rb8+ {[%emt 0:01:36]} Kf7 {[%emt 0:00:08]} 40. Rb7+ {[%emt 0:00:23]} Kg8 {[%emt 0:00:06]} 41. Rb8+ {[%emt 0:31:03]} Kh7 {[%emt 0:35:16]} 42. a3 {[%emt 0:00:00]} Nc3 {[%emt 0:00:00]} 43. Rb4 {[%emt 0:00:00]} Rc8 {[%emt 0:00:00]} 44. Bd2 {[%emt 0:00:00]} Nd5 {[%emt 0:00:00][%cal Oc8c2]} 45. Rb5 {[%emt 0:00:00]} Ne7 {[%emt 0:00:00][%cal Oh6h5]} 46. Bb4 {[%emt 0:00:00]} Nc6 {[%emt 0:00:00] White must now prevent ...Nd4+.} 47. Rc5 {[%emt 0:00:00]} Nd4+ {[%emt 0:00:00]} 48. Ke4 {[%emt 0:00:00]} Rb8 {[%emt 0:00:00]} 49. Rc7 {[%emt 0:00:00][%cal Og4g5] g5! would now be deadly.} Ra8 $2 {[%emt 0:00:00] [#]} (49... Kh8 $14) 50. g5 $1 $18 {[%emt 0:00:00][%mdl 512]} hxg5 {[%emt 0:00:00]} (50... Kg8 51. g6) 51. hxg5 {[%emt 0:00:00][%cal Bh4g5,Bg5f6][%mdl 32]} Nb5 $2 {[%emt 0:00:00]} (51... Ra6 52. g6+ Kh6) 52. Rb7 {[%emt 0:00:00]} Nxa3 {[%emt 0:00:00]} 53. gxf6 {[%emt 0:00:17]} Nc2 {[%emt 0:00:00]} 54. Bc5 {[%emt 0:01:15]} (54. Kxe5 Nxb4 55. Rxg7+ Kh8 $11) 54... Ra4+ {[%emt 0:00:00]} 1-0

[Event "Marienbad Open IM B 2025"]
[Site "Marianske Lazne"]
[Date "2025.01.20"]
[Round "3.15"]
[White "Vaculik, Jakub"]
[Black "Sliwerski, Radoslaw"]
[Result "1/2-1/2"]
[Annotator "TA"]
[ECO "B90"]
[WhiteElo "2281"]
[BlackElo "2040"]
[PlyCount "143"]
[EventDate "2025.01.18"]
[EventType "tourn"]
[EventCountry "CZE"]
[SourceTitle "playchess.com"]
[Source "ChessBase"]
[SourceQuality "1"]
[TimeControl "40/5400+30:1800+30"]

{[%evp 9,143,38,26,2,6,0,0,4,5,-33,-16,-15,10,7,34,24,27,0,29,29,30,18,10,23,9,0,0,0,39,6,0,-10,17,0,45,22,47,-4,52,0,83,85,63,45,63,-8,-12,-18,-24,-20,0,0,0,-8,0,0,0,0,0,-11,7,0,36,46,45,8,6,0,0,0,0,0,7,0,0,0,0,0,0,0,0,0,0,0,0,0,0,0,0,0,0,0,0,0,0,0,0,0,0,0,0,0,0,0,0,0,0,0,0,0,0,0,0,0,0,0,0,0,0,0,7,0,0,0,0,0,0,0,0,0,0,0,0,0,0,0]} 1. e4 {[%emt 0:00:07]} c5 {[%emt 0:00:02]} 2. Nf3 {[%emt 0:00:20]} d6 {[%emt 0:00:01]} 3. d4 {[%emt 0:00:26]} cxd4 {[%emt 0:00:02]} 4. Nxd4 {[%emt 0:00:08]} Nf6 {[%emt 0:00:01]} 5. Nc3 {[%emt 0:00:38]} a6 {[%emt 0:00:01]} 6. Qd3 {[%emt 0:00:51]} e6 {[%emt 0:08:27]} 7. a4 {[%emt 0:00:30]} Be7 {[%emt 0:00:54]} 8. Be2 {[%emt 0:03:54]} O-O {[%emt 0:01:55]} 9. Qg3 {[%emt 0:06:54]} Kh8 {[%emt 0:02:06]} 10. O-O {[%emt 0:09:34]} Bd7 {[%emt 0:05:25]} 11. Rd1 {[%emt 0:05:09]} Qc7 {[%emt 0:03:55]} 12. Be3 {[%emt 0:04:32]} Nc6 {[%emt 0:04:03]} 13. Nb3 {[%emt 0:03:06]} Ne5 {[%emt 0:13:55][%cal Ob7b5]} 14. a5 {[%emt 0:12:29]} Rac8 {[%emt 0:04:01]} 15. Bb6 {[%emt 0:05:34]} Qb8 $1 {[%emt 0:00:30]} 16. Nd2 {[%emt 0:06:42][%cal Bb3d2,Bd2f3,Bf3d4][%mdl 32]} Bc6 {[%emt 0:19:56]} 17. f4 {[%emt 0:05:39]} Ng6 {[%emt 0:02:49]} 18. Be3 {[%emt 0:07:40]} Bd8 {[%emt 0:05:14]} 19. Bd3 {[%emt 0:03:41]} Bc7 {[%emt 0:01:41]} 20. Nf3 {[%emt 0:01:13]} Rcd8 {[%emt 0:06:58]} 21. Nd4 {[%emt 0:06:55]} Bd7 {[%emt 0:04:28]} 22. Nde2 {[%emt 0:01:24]} Bc6 {[%emt 0:00:40]} 23. h3 {[%emt 0:01:43]} ({White should try} 23. Qh3 $14) 23... Ne7 {[%emt 0:03:41]} (23... e5 $1 $11) 24. Qh4 {[%emt 0:02:02]} (24. Nd4 $14) 24... b5 {[%emt 0:04:42] [#]} (24... e5 $11 {keeps the balance.}) 25. axb6 $1 $16 {[%emt 0:03:19] White is more active.} Bxb6 {[%emt 0:00:02]} 26. Bxb6 {[%emt 0:00:45]} Qxb6+ {[%emt 0:00:02]} 27. Kh1 {[%emt 0:01:40]} (27. Qf2 $14 Qxf2+ 28. Kxf2) 27... Ng6 $11 {[%emt 0:01:23]} 28. Qg3 {[%emt 0:01:56]} a5 {[%emt 0:00:26]} 29. b3 {[%emt 0:00:48]} Qb4 {[%emt 0:02:27][%cal Oe6e5]} 30. Qe3 {[%emt 0:00:59]} e5 {[%emt 0:01:34]} 31. fxe5 {[%emt 0:01:57]} dxe5 {[%emt 0:00:50]} 32. Bc4 {[%emt 0:00:36]} Rxd1+ {[%emt 0:00:40]} 33. Rxd1 {[%emt 0:00:10]} a4 {[%emt 0:00:16]} 34. Ra1 {[%emt 0:01:31]} axb3 {[%emt 0:01:15]} 35. cxb3 {[%emt 0:00:08]} Ra8 {[%emt 0:01:25]} 36. Rxa8+ {[%emt 0:00:34]} Bxa8 {[%emt 0:00:02]} 37. Bxf7 {[%emt 0:01:11]} Nxe4 {[%emt 0:00:27]} 38. Bxg6 {[%emt 0:00:53]} hxg6 {[%emt 0:00:37]} 39. Nxe4 {[%emt 0:00:32]} Bxe4 $14 {[%emt 0:01:37][%mdl 4096] Endgame KQB-KQN} 40. Kh2 {[%emt 0:01:34]} Qb7 {[%emt 0:01:21]} 41. Qg5 {[%emt 0:07:40]} Bf5 {[%emt 0:09:59]} 42. Qh4+ {[%emt 0:00:26]} Kg8 {[%emt 0:00:04]} 43. Qc4+ {[%emt 0:00:16]} Kh7 {[%emt 0:13:02]} 44. Nc3 {[%emt 0:02:08]} e4 {[%emt 0:00:55]} 45. b4 {[%emt 0:06:21][%cal Bb3b4,Bb4b5][%mdl 32]} e3 {[%emt 0:01:51]} 46. Qh4+ {[%emt 0:02:28]} Kg8 {[%emt 0:00:07] And now ...Qc7+ would win.} 47. Qd8+ {[%emt 0:00:32]} Kh7 {[%emt 0:02:10]} 48. b5 {[%emt 0:00:32]} Bd7 {[%emt 0:05:06]} 49. Qh4+ {[%emt 0:04:50]} Kg8 {[%emt 0:00:02]} 50. Qc4+ {[%emt 0:00:13]} Kh7 {[%emt 0:00:04]} 51. Kg3 {[%emt 0:02:03]} e2 {[%emt 0:01:18]} 52. Nxe2 {[%emt 0:03:24] Qh4+ is the strong threat.} Qxb5 {[%emt 0:00:21]} 53. Qh4+ {[%emt 0:00:53]} Qh5 {[%emt 0:00:15]} 54. Qxh5+ {[%emt 0:01:51]} gxh5 $11 {[%emt 0:00:01] KB-KN} 55. Kf4 {[%emt 0:00:38]} Kh6 {[%emt 0:01:12]} 56. h4 {[%emt 0:00:46]} g6 {[%emt 0:00:18]} 57. Nd4 {[%emt 0:00:24]} Bg4 {[%emt 0:00:37]} 58. g3 {[%emt 0:00:14]} Bd7 {[%emt 0:00:25]} 59. Nf3 {[%emt 0:00:05]} Bg4 {[%emt 0:00:17]} 60. Ng5 {[%emt 0:00:10]} Bf5 {[%emt 0:00:29]} 61. Ke5 {[%emt 0:00:07]} Kg7 {[%emt 0:00:48]} 62. Nf3 {[%emt 0:00:13]} Kf7 {[%emt 0:00:26]} 63. Nd4 {[%emt 0:00:25]} Bd7 {[%emt 0:00:22]} 64. Ne2 {[%emt 0:00:08]} Bf5 {[%emt 0:00:28]} 65. Nf4 {[%emt 0:00:05][%cal Of4h5]} Bc2 {[%emt 0:00:09]} 66. Nd5 {[%emt 0:00:22]} Bb3 {[%emt 0:00:43]} 67. Nc7 {[%emt 0:00:23]} Bc4 {[%emt 0:00:17]} 68. Na8 {[%emt 0:00:29]} Bd3 {[%emt 0:00:27]} 69. Nb6 {[%emt 0:00:16]} Bf5 {[%emt 0:00:35]} 70. Nd5 {[%emt 0:00:25]} Be6 {[%emt 0:00:41]} 71. Nf4 {[%emt 0:00:05]} Bc4 {[%emt 0:00:13]} 72. Nh3 {[%emt 0:00:28]} 1/2-1/2

[Event "Marienbad Open IM B 2025"]
[Site "Marianske Lazne"]
[Date "2025.01.21"]
[Round "4.11"]
[White "Konopka, Michal"]
[Black "Sliwerski, Radoslaw"]
[Result "1-0"]
[Annotator "TA"]
[ECO "A46"]
[WhiteElo "2321"]
[BlackElo "2040"]
[PlyCount "111"]
[EventDate "2025.01.18"]
[EventType "tourn"]
[EventCountry "CZE"]
[SourceTitle "playchess.com"]
[Source "ChessBase"]
[SourceQuality "1"]
[TimeControl "40/5400+30:1800+30"]

{[%evp 12,111,0,8,32,31,37,31,59,58,51,44,117,103,111,6,20,10,27,22,20,18,27,26,17,19,29,15,16,6,6,3,23,22,23,17,10,8,11,0,0,0,0,0,59,59,59,56,56,59,59,60,176,168,181,159,174,174,250,241,270,259,267,258,239,35,304,291,373,355,601,552,1022,995,1100,1100,941,304,1744,1466,1445,1008,1543,0,1750,1618,2197,1766,29973,29972,29971,29975,29979,29981,29981,29982,29982,29983,29984,29985,29985,29984]} 1. d4 {[%emt 0:01:10]} Nf6 {[%emt 0:00:02]} 2. Nf3 {[%emt 0:00:32]} d5 {[%emt 0:00:03]} 3. g3 {[%emt 0:00:50]} e6 4. Bg2 {[%emt 0:00:09]} c5 {[%emt 0:00:19]} 5. O-O {[%emt 0:00:24]} Nc6 {[%emt 0:00:41]} 6. b3 {[%emt 0:07:14]} cxd4 {[%emt 0:04:35]} 7. Nxd4 {[%emt 0:00:06]} Nxd4 {[%emt 0:00:09]} 8. Qxd4 {[%emt 0:00:09]} Be7 {[%emt 0:00:06]} 9. Bb2 {[%emt 0:01:45]} O-O {[%emt 0:09:13]} 10. c4 {[%emt 0:07:08]} dxc4 {[%emt 0:06:20]} 11. Qxc4 {[%emt 0:04:54]} Rb8 {[%emt 0:11:00]} (11... Qa5 $14) 12. Be5 $1 $16 {[%emt 0:29:14] White has more active pieces. The black rooks are passive.} Bd6 {[%emt 0:03:44]} 13. Bxf6 {[%emt 0:05:31]} (13. Rd1 $16 Nd5 14. Bxd6 Qxd6 15. Nc3) 13... Qxf6 $11 {[%emt 0:01:00]} 14. Nc3 {[%emt 0:00:02][%cal Bb1c3,Bc3e4,Be4c5][%mdl 32]} Be5 {[%emt 0:08:08]} 15. Rac1 {[%emt 0:00:55]} Bd7 {[%emt 0:03:06]} 16. Ne4 {[%emt 0:00:13]} Qe7 {[%emt 0:03:10]} 17. Qc5 {[%emt 0:00:29]} Qxc5 {[%emt 0:07:14]} 18. Nxc5 {[%emt 0:00:07]} Bc8 $1 {[%emt 0:08:16] Black is weak on the light squares} 19. Rfd1 {[%emt 0:03:04]} b6 {[%emt 0:01:14]} 20. f4 {[%emt 0:11:06]} Bb2 {[%emt 0:14:34]} 21. Rc2 {[%emt 0:00:11]} bxc5 {[%emt 0:00:18]} 22. Rxb2 {[%emt 0:00:07] Threatening Rc2.} c4 {[%emt 0:00:15]} 23. Rc1 {[%emt 0:05:20]} cxb3 {[%emt 0:10:12]} 24. axb3 {[%emt 0:00:09][%cal Ba2b3,Bb3b4,Bb4b5,Bb5a6][%mdl 32]} Bb7 {[%emt 0:01:18]} 25. Rc7 {[%emt 0:02:57]} Bxg2 {[%emt 0:00:10]} 26. Kxg2 {[%emt 0:00:04][%mdl 4096] Endgame KRR-KRR} a5 {[%emt 0:01:02]} 27. Rc5 {[%emt 0:01:26]} a4 {[%emt 0:00:52]} (27... Ra8 $11) 28. b4 $14 {[%emt 0:00:02]} Rfc8 {[%emt 0:06:08] Hoping for ...Rxc5.} 29. Ra5 {[%emt 0:07:05]} Rc4 {[%emt 0:00:07]} 30. Rxa4 {[%emt 0:00:55]} h5 {[%emt 0:00:18]} 31. Kf3 {[%emt 0:02:03]} Rd8 {[%emt 0:01:08]} ({Black should play} 31... f5 $14) 32. Ra3 {[%emt 0:01:59]} Rb8 33. b5 {[%emt 0:00:29]} Rb6 {[%emt 0:01:21]} 34. Ra6 $1 {[%emt 0:04:22]} Rxa6 {[%emt 0:00:09]} (34... Rb7 $142 35. Rb3 Kh7) 35. bxa6 $18 {[%emt 0:00:02] KR-KR. White is a pawn up.} Ra4 {[%emt 0:00:04]} 36. Rb6 {[%emt 0:00:24]} g6 {[%emt 0:00:16]} 37. h3 {[%emt 0:03:33][%cal Bh2h3,Bh3g4,Bg4g5][%mdl 32]} Kg7 {[%emt 0:00:07]} 38. g4 $2 {[%emt 0:00:10]} (38. Ke3 $18) 38... Ra3+ $2 {[%emt 0:00:28][%mdl 8192] [#]} (38... g5 $14) 39. e3 $1 {[%emt 0:00:28][%cal Be2e3,Be3f4][%mdl 32]} hxg4+ {[%emt 0:00:18]} 40. hxg4 {[%emt 0:00:02]} g5 $2 {[%emt 0:00:50] [#]} (40... Ra5 41. g5 Ra4) 41. Ke4 $1 {[%emt 0:11:28]} ({Less strong is} 41. fxg5 Ra4 $14) 41... gxf4 {[%emt 0:11:53]} 42. exf4 {[%emt 0:00:52]} Kf6 {[%emt 0:06:20]} 43. g5+ {[%emt 0:13:02]} Kg7 {[%emt 0:00:54]} 44. Ke5 $2 {[%emt 0:00:26]} (44. Kd4 {aiming for Kc5.} Ra1 45. Kc5) 44... Ra4 $2 {[%emt 0:03:12]} (44... Rd3 45. a7 Rd5+ 46. Ke4 Ra5) 45. Rc6 {[%emt 0:02:59]} Ra5+ {[%emt 0:04:43]} 46. Kd4 {[%emt 0:01:59]} Ra4+ {[%emt 0:01:21]} 47. Ke5 {[%emt 0:00:31]} Ra5+ $1 {[%emt 0:00:10]} 48. Kd6 {[%emt 0:01:03]} Ra4 {[%emt 0:00:06]} 49. Kc7 {[%emt 0:02:45]} Rxf4 {[%emt 0:00:25]} 50. a7 {[%emt 0:00:11]} Ra4 {[%emt 0:00:08]} 51. Kb7 {[%emt 0:00:03]} Rxa7+ {[%emt 0:01:34]} 52. Kxa7 {[%emt 0:00:05]} Kg6 {[%emt 0:00:02]} 53. Rc5 {[%emt 0:00:12]} f5 {[%emt 0:00:04]} 54. gxf6 {[%emt 0:00:13]} Kxf6 {[%emt 0:00:02]} 55. Kb6 {[%emt 0:00:32]} e5 {[%emt 0:00:04]} 56. Kb5 {[%emt 0:00:32]} 1-0

[Event "Marienbad Open IM B 2025"]
[Site "Marianske Lazne"]
[Date "2025.01.21"]
[Round "4.12"]
[White "Roesemann, Rainer"]
[Black "Vaculik, Jakub"]
[Result "0-1"]
[Annotator "TA"]
[ECO "A13"]
[WhiteElo "2276"]
[BlackElo "2281"]
[PlyCount "96"]
[EventDate "2025.01.18"]
[EventType "tourn"]
[EventCountry "CZE"]
[SourceTitle "playchess.com"]
[Source "ChessBase"]
[SourceQuality "1"]
[TimeControl "40/5400+30:1800+30"]

{[%evp 9,96,0,0,-9,-14,-50,-46,-93,-86,-100,-96,-115,-77,-120,-118,-118,-122,-115,-53,-127,-104,-81,-96,-137,-136,-162,-153,-148,-123,-126,-76,-172,-89,-143,-128,-140,-124,-144,-126,-137,-143,-135,-123,-134,-114,-118,-96,-143,-139,-119,-128,-159,-144,-165,-175,-195,-113,-191,-204,-195,-202,-193,-168,-279,-229,-266,-264,-389,-352,-470,-445,-466,-387,-400,-412,-439,-212,-297,-256,-481,-445,-595,-535,-1739,-1737,-29979,-5785,-29995,-945]} 1. c4 {[%emt 0:00:03]} Nf6 {[%emt 0:00:27]} 2. g3 {[%emt 0:00:07]} e6 {[%emt 0:00:08]} 3. Bg2 {[%emt 0:00:10]} d5 {[%emt 0:00:20]} 4. Nf3 {[%emt 0:00:10]} dxc4 {[%emt 0:01:09]} 5. O-O {[%emt 0:00:35]} a6 {[%emt 0:01:03]} 6. Na3 {[%emt 0:01:20]} b5 {[%emt 0:01:23]} 7. b3 {[%emt 0:07:45]} cxb3 {[%emt 0:11:43]} 8. axb3 {[%emt 0:00:55]} (8. Ne5 $15 Ra7 9. Qxb3) 8... Bb7 $17 {[%emt 0:01:33]} 9. Bb2 {[%emt 0:00:20]} Be7 {[%emt 0:07:51]} 10. Qc2 {[%emt 0:00:22]} Nbd7 {[%emt 0:05:52]} 11. d4 {[%emt 0:07:50]} Be4 {[%emt 0:05:26]} 12. Qd2 {[%emt 0:02:14]} O-O {[%emt 0:03:05]} 13. Rfd1 {[%emt 0:02:00]} Nb6 {[%emt 0:03:02]} ({Black should play} 13... Bd5 $17 14. Ne1 Bxg2 15. Nxg2 Qc8) 14. Nc2 {[%emt 0:11:15]} (14. Nb1 $15) 14... Qd5 {[%emt 0:08:22]} 15. Ba3 {[%emt 0:04:45]} Bd6 {[%emt 0:06:20] Black has more active pieces.} (15... Qxb3 16. Bxe7 Qxc2 (16... Bxc2 17. Rdc1 $16) 17. Qxc2 Bxc2 18. Rdc1 $18) 16. Qc3 {[%emt 0:01:03]} Qb7 {[%emt 0:02:25]} 17. Nfe1 {[%emt 0:02:01]} Bxg2 {[%emt 0:08:14]} 18. Nxg2 {[%emt 0:00:19]} Nbd5 {[%emt 0:01:47]} 19. Qd3 {[%emt 0:01:56]} Rfd8 {[%emt 0:02:40]} (19... Ne7 $142 20. Nge3 a5) 20. f3 {[%emt 0:07:08]} (20. e4 $17 Bxa3 21. exd5) 20... Nb6 {[%emt 0:02:41]} (20... Bxa3 $19 21. Nxa3 Ne7) 21. e4 {[%emt 0:03:05] [#]} (21. Bxd6 $142 Rxd6 (21... cxd6 $2 22. e4 $17) 22. e4) 21... Bxa3 $1 {[%emt 0:01:01]} 22. Rxa3 {[%emt 0:01:36]} c5 {[%emt 0:00:12]} 23. Qe2 {[%emt 0:04:39]} c4 {[%emt 0:02:16]} 24. Nge3 {[%emt 0:00:53]} cxb3 {[%emt 0:02:21]} 25. Rxb3 {[%emt 0:00:23]} Na4 {[%emt 0:02:11]} 26. Ra1 {[%emt 0:04:51]} Qa7 {[%emt 0:02:04]} 27. Kg2 {[%emt 0:01:05]} Rac8 {[%emt 0:00:38]} 28. Qd2 {[%emt 0:02:28]} ({White should try} 28. Qe1) 28... Nd7 {[%emt 0:08:51]} 29. Qa5 {[%emt 0:00:50]} Ra8 {[%emt 0:02:22]} 30. h4 {[%emt 0:03:42]} Rdc8 {[%emt 0:01:20]} 31. h5 {[%emt 0:04:43]} h6 {[%emt 0:00:19]} 32. g4 {[%emt 0:00:39]} Qc7 {[%emt 0:00:34]} (32... Ndb6 $19 33. Qd2 Qd7) 33. Qd2 {[%emt 0:00:23]} (33. Qxc7 $17 Rxc7 34. Kf2) 33... Ndb6 $19 {[%emt 0:01:10]} 34. Na3 {[%emt 0:04:02]} Qf4 {[%emt 0:01:18]} 35. Ra2 {[%emt 0:01:34]} Ra7 {[%emt 0:01:01]} 36. Nac2 {[%emt 0:02:29]} (36. Rc2 {keeps fighting.}) 36... Qg5 {[%emt 0:02:04][%cal Of7f5]} 37. Qf2 {[%emt 0:06:39]} Rac7 {[%emt 0:01:28]} 38. Nb4 {[%emt 0:00:57]} (38. Qe1 $142) 38... Rc3 {[%emt 0:01:29]} 39. Rxc3 {[%emt 0:01:12]} Rxc3 {[%emt 0:00:08]} 40. f4 {[%emt 0:00:46]} Qd8 {[%emt 0:00:27]} 41. d5 {[%emt 0:32:34]} Qd6 {[%emt 0:09:51]} 42. Nc6 {[%emt 0:00:00]} Qc5 {[%emt 0:05:54]} (42... exd5 $2 43. Nf5 Qc5 (43... Qxc6 $2 44. Ne7+ Kh7 45. Nxc6 $18) 44. Nce7+ Kf8 45. Qh4 $19) (42... b4 $142 {White must now prevent ...b3.} 43. Rd2 b3) 43. Re2 {[%emt 0:00:00]} (43. Nd1 $142 Qxf2+ 44. Kxf2) 43... exd5 {[%emt 0:02:50]} 44. Ne5 $2 {[%emt 0:00:00]} (44. Nf5 {was the only defense.}) 44... d4 {[%emt 0:03:52]} 45. Nf5 {[%emt 0:00:00]} d3 {[%emt 0:01:53]} 46. Qh4 {[%emt 0:00:00] Black must now prevent Qd8+.} dxe2 {[%emt 0:03:34]} 47. Qd8+ {[%emt 0:00:00]} Kh7 {[%emt 0:00:09]} 48. g5 {[%emt 0:01:40] [#]} Qg1+ $3 {[%emt 0:00:14][%mdl 512]} 0-1